Cogmind - Beta 14 @@@ ROGUE MODE // 2024.10.06 @ 22:26:50 Player: bluemonk Result: Destroyed by G-34 Mercenary with Small Laser Performance ------------- Evolutions (0) 0 Regions Visited (1) 200 Robots Destroyed (11) 55 Value Destroyed (326) 326 Prototype IDs (0) 0 Alien Tech Used (0) 0 Bonus (0) 0 TOTAL SCORE: 581 Bonus ------- None Cogmind --------- Core Integrity 0/250 Matter 300/300 Energy 81/100 System Corruption 0% Temperature Danger (439) Movement Core (400) Ox7 Location -10/Materials Parts ------- > --- POWER (1) -------- (None) > --- PROPULSION (2) --- (None) > --- UTILITY (2) ------ Large Storage Unit Visual Processing Unit > --- WEAPON (2) ------- Beam Cannon > --- INVENTORY (15) --- Ion Engine Ion Engine Light Treads Light Treads Wheel Wheel Medium Storage Unit High-capacity Matter Pod (130) Sensor Array Signal Interpreter Peak State ------------ > --- POWER ------------ Ion Engine > --- PROPULSION ------- Aluminum Leg Aluminum Leg > --- UTILITY ---------- Medium Storage Unit Visual Processing Unit > --- WEAPON ----------- EM Pulse Gun Assault Rifle > --- INVENTORY -------- Ion Engine Ion Engine Light Treads Light Treads Wheel Wheel Small Storage Unit Sensor Array Signal Interpreter Small Laser [Rating: 9] Favorites ----------- Power Ion Engine Engine Ion Engine Propulsion Aluminum Leg Leg Aluminum Leg Utility Visual Processing Unit Storage Medium Storage Unit Processor Visual Processing Unit Weapon Assault Rifle Energy Gun EM Pulse Gun Energy Cannon Beam Cannon Ballistic Gun Assault Rifle Special Melee Weapon Datajack Build | -11 -10 ------- Run | Yrd Mat Slots Evolved . | . . Power . | . . Propulsion . | . . Utility . | . . Weapon . | . . Parts Attached 13 | 6 7 Power 1 | 1 . Engine 1 | 1 . Core . | . . Reactor . | . . Propulsion 2 | 2 . Treads . | . . Leg 2 | 2 . Wheel . | . . Hover . | . . Flight . | . . Utility 5 | 1 4 Device . | . . Storage 3 | 1 2 Processor 2 | . 2 Hackware . | . . Protection . | . . Artifact . | . . Weapon 5 | 2 3 Energy Gun 2 | 1 1 Energy Cannon 1 | . 1 Ballistic Gun 1 | 1 . Ballistic Cannon . | . . Launcher . | . . Special Weapon . | . . Impact Weapon . | . . Slashing Weapon . | . . Piercing Weapon . | . . Special Melee Weapon 1 | . 1 Unidentified Prototypes . | . . Parts Lost 7 | . 7 Power 1 | . 1 Propulsion 2 | . 2 Utility . | . . Weapon 4 | . 4 Highest Loss Streak 5 | . 5 To Critical Strikes . | . . Average Slot Usage (%) 92 | . 92 Engine 13 | . 13 Leg 26 | . 26 Storage 14 | . 14 Processor 11 | . 11 Energy Gun 13 | . 13 Ballistic Gun 7 | . 7 Special Melee Weapon 3 | . 3 Peak Build Rating 9 | 6 9 Average Rating 7 | 4 7 On Entrance 3 | . 6 Naked Turns . | . . Heaviest Build 27 | 14 27 Greatest Support 20 | 20 20 Greatest Overweight (x) 1 | . 1 Average Overweight (x) . | . . Largest Inventory Capacity 15 | 8 15 Average Capacity 10 | 7 11 Most Carried 11 | 6 11 Average Carried 8 | 2 9 Final Capacity 15 | 8 15 Final Carried 10 | 6 10 Class Distribution -------------------- 100% | Mutant Dominant Class ---------------- Mutant | -10/Materials Resources | -11 -10 ----------- Run | Yrd Mat Matter Collected 491 | 246 245 Remotely . | . . Salvage Created 372 | . 372 Parts 21 | . 21 Haulers Intercepted . | . . Recyclers Shooed . | . . Parts Field Recycled . | . . Retrieved Matter . | . . Parts Self-Destructed . | . . Prevented . | . . Kills | -11 -10 ------- Run | Yrd Mat Combat Hostiles Destroyed 9 | . 9 Guns 6 | . 6 Cannons 2 | . 2 AOE 1 | . 1 Classes Destroyed 3 | . 3 Watcher 2 | . 2 Swarmer 2 | . 2 Grunt 7 | . 7 Best Kill Streak 5 | . 5 Combat Bots Only 4 | . 4 Max Kills in Single Turn 1 | . 1 Gunslinging . | . . Exploded 1 | . 1 Melee . | . . Uniques/NPCs Destroyed . | . . Combat | -11 -10 -------- Run | Yrd Mat Hostile Shots Fired 105 | . 105 Missed 26 | . 26 Damage Taken 912 | . 912 Core 251 | . 251 Absorbed by Shields . | . . Core Remaining (%) 100 | 100 . Volleys Fired 43 | . 43 Largest 2 | . 2 Hottest 100 | . 100 Shots Fired 72 | . 72 Gun 63 | . 63 Cannon 9 | . 9 Launcher . | . . Special . | . . Kinetic 22 | . 22 Thermal 36 | . 36 Explosive . | . . Electromagnetic 14 | . 14 Robot Hit Streak 9 | . 9 Robot Miss Streak 5 | . 5 Penetration Max . | . . Secondary Targets 1 | . 1 Max Gunslinging Chain 1 | . 1 Shots Hit Robots 40 | . 40 Core Hits 19 | . 19 Critical Kills . | . . Critical Parts Destroyed . | . . Critical Strikes . | . . Melee Attacks . | . . Impact . | . . Slashing . | . . Piercing . | . . Sneak Attacks . | . . Combat Hostiles . | . . Follow-up Attacks . | . . Damage Inflicted 620 | . 620 Guns 462 | . 462 Cannons 105 | . 105 Explosions 53 | . 53 Melee . | . . Ramming . | . . Kinetic 185 | . 185 Thermal 325 | . 325 Explosive . | . . Electromagnetic 110 | . 110 Impact . | . . Slashing . | . . Piercing . | . . Highest Corruption . | . . Average Corruption . | . . Corruption Purged . | . . Corruption Blocked . | . . Overload Shots . | . . Overflow Damage . | . . Projectiles . | . . Explosions . | . . Melee . | . . Knockbacks . | . . Impact . | . . Kinetic . | . . Secondary . | . . Self-Inflicted Damage . | . . Shots . | . . Rammed . | . . Targets Rammed . | . . Kicked . | . . Crushed . | . . Highest Temperature 433 | . 433 Average Temperature 97 | . 97 Received Heat Transfer 438 | . 438 Effects 3 | . 3 Damage (major) 3 | . 3 Siege Activations . | . . Robots Corrupted . | . . Combat Hostiles . | . . Parts Fried . | . . Impact Corruptions . | . . Robots Melted . | . . Combat Hostiles . | . . Parts Melted 1 | . 1 Heat Transferred 697 | . 697 Parts Sabotaged . | . . Parts Stolen . | . . Parts Stripped . | . . Power Chain Reactions 1 | . 1 Alert | -11 -10 ------- Run | Yrd Mat Peak Influence 155 | . 155 Initial . | . . Average 69 | . 81 Maximum Alert Level . | . . Low Security (%) 100 | 100 100 Level 1 . | . . Level 2 . | . . Level 3 . | . . Level 4 . | . . Level 5 . | . . High Security . | . . Max Security . | . . Squads Dispatched 2 | . 2 Investigation . | . . Extermination . | . . Reinforcement 2 | . 2 Assault . | . . Garrison . | . . Intercept . | . . Searches Triggered . | . . Construction Impeded . | . . Haulers Reinforced . | . . Active Scanning Responses . | . . Cargo Convoy Interrupts . | . . Stealth | -11 -10 --------- Run | Yrd Mat Distress Signals . | . . Communications Jammed . | . . Distress Signals . | . . Times Spotted 15 | . 15 Peak Tracking Total 7 | . 7 Tactical Retreats . | . . Traps | -11 -10 ------- Run | Yrd Mat Traps Triggered . | . . Indirectly . | . . Trap Hack Attempts . | . . Triggered . | . . Disarmed 6 | . 6 Reprogrammed . | . . Reused . | . . Traps Extracted . | . . Installed . | . . Triggered . | . . Machines | -11 -10 ---------- Run | Yrd Mat Machines Disabled 1 | . 1 Max in Single Turn 1 | . 1 Machines Repaired . | . . Machines Dismantled . | . . Machines Sabotaged . | . . Overloaded Fab Kills . | . . Hacking | -11 -10 --------- Run | Yrd Mat Machines Accessed 3 | . 3 Terminals 2 | . 2 Fabricators . | . . Repair Stations . | . . Recycling Units 1 | . 1 Scanalyzers . | . . Garrison Access . | . . Total Hacks 12 | . 12 Successful 7 | . 7 Failed 5 | . 5 Catastrophic . | . . Database Lockouts . | . . Manual . | . . Terminals 11 | . 11 Fabricators . | . . Repair Stations . | . . Recycling Units 1 | . 1 Scanalyzers . | . . Garrison Access . | . . Terminal Hacks 6 | . 6 Emergency Access Points 2 | . 2 Alert Level 1 | . 1 Locate Traps 1 | . 1 Disarm Traps 1 | . 1 Hauler Manifests 1 | . 1 Fabricator Hacks . | . . Repair Station Hacks . | . . Recycling Unit Hacks 1 | . 1 Report Inventory 1 | . 1 Scanalyzer . | . . Garrison Access Hacks . | . . Unauthorized Hacks . | . . Terminals . | . . Fabricators . | . . Repair Stations . | . . Recycling Units . | . . Scanalyzers . | . . Garrison Access . | . . Data Cores Recovered . | . . Used . | . . Hacking Detections 2 | . 2 Full Trace Events . | . . Feedback Events . | . . Feedback Blocked . | . . Robot Schematics Acquired . | . . Robots Built . | . . Authchips . | . . Time . | . . Total Robot Build Rating . | . . Part Schematics Acquired . | . . Parts Built . | . . Authchips . | . . Time . | . . Total Part Build Rating . | . . Parts Repaired . | . . Time . | . . Parts Recycled . | . . Recycled Matter . | . . Retrieved Matter . | . . Retrieved Components . | . . Parts Scanalyzed . | . . Part Schematics Acquired . | . . Parts Damaged . | . . Bothacking | -11 -10 ------------ Run | Yrd Mat Used RIF Installer . | . . Robots Hacked . | . . Non-combat . | . . Combat . | . . Robot Hacks Applied . | . . Relay Couplers Released . | . . Fabnet Peak Effective % . | . . Robots Rewired . | . . Allies Hacked . | . . Hacks Repelled . | . . Allies | -11 -10 -------- Run | Yrd Mat Total Allies . | . . Largest Group . | . . Highest-Rated Group . | . . Highest-Rated Ally . | . . Total Orders . | . . Ally Attacks . | . . Total Damage . | . . Kills . | . . Allies Corrupted . | . . Allies Melted . | . . Intel | -11 -10 ------- Run | Yrd Mat Robot Analysis Total . | . . Derelict Logs Recovered . | . . Drone Launches . | . . Drone Recoveries . | . . Exploration | -11 -10 ------------- Run | Yrd Mat Turns Passed 506 | 71 435 Spaces Moved 257 | 48 209 Core 1 | 1 . Treads . | . . Legs 256 | 47 209 Wheels . | . . Hover . | . . Flight . | . . Fastest Speed 50 | 50 120 Average Speed 137 | 118 142 Slowest Speed 190 | 120 190 Overloaded Moves . | . . Propulsion Burnouts . | . . Robots Hopped . | . . Cave-ins Triggered . | . . Exploration Rate (%) 21 | 3 39 Regions Visited 1 Branch Regions . Pre-discovered Areas . | . . Known Exits Taken . | . . Unknown Exits Taken 1 | 1 . Scrap Searched . | . . Spaces Dug . | . . Terrain Destroyed 3 | . 3 Melee . | . . Projectile . | . . AOE 3 | . 3 Terrain Rammed . | . . Walls Destroyed . | . . Machines Disabled . | . . Actions | -11 -10 --------- Run | Yrd Mat Total 332 | 59 273 Wait 5 | . 5 Move 256 | 47 209 Hop . | . . Pick Up 14 | 6 8 Fast Attach 8 | 6 2 Attach 2 | . 2 Detach . | . . Swap 3 | . 3 Drop 1 | . 1 Fire 43 | . 43 Melee . | . . Ram . | . . Kick . | . . Crush . | . . Escape Stasis . | . . Rewire . | . . Trap . | . . Miscellaneous . | . . Route ------- -11/Scrapyard -10/Materials (discovered 1 exit: [*Mat]) History --------- Turn | Location | Event 5 | -11/Scrapyard | Discovered new exit (range 16) 72 | -11/Scrapyard | Entered Materials 311 | -10/Materials | Build established: Mutant 334 | -10/Materials | Discovered new exit (range 14) 481 | -10/Materials | Core integrity fell below 50% 498 | -10/Materials | Core integrity fell below 20% 507 | -10/Materials | Destroyed by G-34 Mercenary with Small Laser Last Messages --------------- K-01 Serf collects debris. Acquired 16 matter. Acquired 45 matter. ALERT: Hostiles spotted, dispatching reinforcements to Terminal M001. Aluminum Leg destroyed. S-10 Pest destroyed. Datajack destroyed. S-10 Pest destroyed. Aluminum Leg destroyed. Ion Engine destroyed. W-16 Scout destroyed. G-47 Trooper destroyed. Terminal disabled. Sml. Laser destroyed. Overheating: Lrg. Storage Unit damaged (-107). Overheating: Visual Processing Unit damaged (-6). Overheating: Beam Cannon damaged (-12). G-34 Mercenary destroyed. Map ----- +----------------------------------------------------+ | ?????????????????????????????? ?????????? ? | | ?????????????????????????????? ?????????? ?? | | ?????????????????????????????? ????????? ?? | | ??????????????????????????????# #???????? ?? | | ??????????????????????????????# #????????# #?? | | ??????????????????????????????# #????????# #?? | | ??????????????????????????????# #????????+ #?? | | ??????????????????????????????# #????????# #?? | | ??????????????????????????????# #????????# #?? | | ??????????????????????????????# #????????# #?? | | ??????????????????????????????# #????????# #?? | | ?????????????????##???????????# #????????# #?? | | ?????????????? ???????????# #????????# ### | | ???????????? ??????????+ #???????## ## | | ????????????? ??????????# ######### # | | ????????????? ??????????# # | | ?????????????? ??????????# ######### T + | | ??????????? ??????????# #???????# # | | ???????????" """ ??????????# #???????# # | | ???????????"""""" ?????????# ########## ## | | ?????????""""" " ?#???????# ## # ## | | ?????????? ?#"??????# ## " + ### | | ???????????? ??""?????# ##""" # #?? | | ???????????" """ ??? ???## ##""" # #?? | | ??????????""""""" #####+### #""" ### #?? | | ???? """"" " ![%= @ # "" #?# #?? | | ???? [% ==%*%* #""" #?# #?? | | ???? g *%=== = #"" #?# #?? | | ????? #####################=%g #"" #?# #?? | | ?????????????????????????????### ### " #?# ### | | ???????????????????????????????# #?# ### | | ???????????????????????????????# #?#########"" | | ????????????????????########???# #?????????#"Y * | | ????????????????????# #?# #?????????#"" * | | ????????????????????# """ #?# #????????#### | | ????????????????????# """ #?# #????????# | | ????????????????????# """ #?# #????????# %= | | ????????????????????# #?# #????????# == | | ????????????????????# """ #?# #????????# == | | ????????????????????# """ #?# ####?????# | | ????????????????????# """ #?# !##????## | | ????????????????????# ! #?# !#?????# | | ???????????????????######+###### #?????# | | ???????????????????# !#?????# | | ???????????????????# !#?????# | | ???????????????????# !##?????# | | ???????????????????# < #######+#+####??????+ | | ???????????????????# ????# #????????# | | ???????????????????###?????# """ #????????###### | | ???????????????????????????# """ #?????????????# | +----------------------------------------------------+ Best States ------------- Heat Dissipation 25 Energy Generation 10 Energy Capacity 250 Matter Stores 300 Matter Capacity 300 Sight Range 18 Terrain Scan Density 10 Evasion (%) 55 Targeting Accuracy 5 Item Schematics ----------------- None Robot Schematics ------------------ None Fabricated ------------ Nothing Alien Tech Used ----------------- None Achievements -------------- None Challenges ------------ None Game ------ Seed ModifiedAntimissilePit Manual? 0 Play Time 00:07:25 Cumulative 26.0 hours Start 2024.10.06 @ 22:21:04 End 2024.10.06 @ 22:26:50 Sessions 1 Manual Loads 0 Difficulty Rogue Special Mode None Game No. 43 Rogue 43 Adventurer 0 Explorer 0 Win Type - Total 0 Types 0/0/0/0/0/0/0/0/0 Lore% 9 Gallery% 31 Achievement% 22 Wizard Run 0 Options --------- Layout 1 ASCII 0 Keyboard 0 Movement Numpad Keybinds 0 Fullscreen 1 Font 24/Smallcaps Map View 50x35 Zoom Use 0% Tactical HUD 0 Map Filters NONE Filters NONE Steam 1 RUN: f4bb7c80-b23a-4cce-baf5-74bf6cd2560f